bitfinex-derivatives/quotes_BNBF0:USTF0_20250521
["timestamp","ask_amount","ask_price","bid_price","bid_amount"]
[1747858485091,1.10393724,671.4,670.05,1.117]
[1747858485290,0.97104384,671.39,670.05,1.117]
[1747858486892,0.97104384,671.38,670.05,1.117]
[1747858488594,0.97104384,671.37,670.05,1.117]
[1747858490191,1.10393724,671.34,670.13,0.65417091]
[1747858493098,1.10393724,671.34,670.15,0.65417091]
[1747858495003,1.10393724,671.32,670.18,0.65417091]
[1747858497898,1.10393724,671.26,670.32,0.65417091]
[1747858500603,1.10393724,671.27,670.3,0.65417091]
[1747858503806,1.10393724,671.26,670.3,0.65417091]
[1747858506813,1.10393724,671.26,670.31,1.249]
[1747858507506,1.10393724,671.37,670.31,1.249]
[1747858509013,0.97104384,671.36,670.31,1.249]
[1747858510517,0.97104384,671.35,670.31,1.249]
[1747858511316,0.97104384,671.34,670.31,1.249]
[1747858512319,0.97104384,671.38,670.31,1.249]
[1747858513523,0.97104384,671.37,670.31,1.249]
[1747858515315,1.10393724,671.13,670.31,1.249]
[1747858516620,0.97104384,671.12,670.31,1.249]
[1747858518422,0.97104384,671.11,670.31,1.249]
[1747858520123,0.97104384,671.1,670.31,1.249]
[1747858521723,0.97104384,671.09,670.31,1.249]
[1747858522824,0.97104384,671.08,670.31,1.249]
[1747858524527,1.10393724,671.15,670.31,1.249]
[1747858527528,1.10393724,671.06,670.31,1.249]
[1747858528428,0.97104384,671.05,670.31,1.249]
[1747858529929,0.97104384,671.04,670.31,1.249]
[1747858531125,0.97104384,671.07,670.31,1.249]
[1747858532029,0.97104384,671.07,670.3,0.25943915]
[1747858533932,0.97104384,671.07,669.88,0.65417091]
[1747858534130,0.97104384,671.07,670.3,0.2594672]
[1747858534431,0.97104384,671.07,669.88,0.65417091]
[1747858534630,0.97104384,671.13,669.88,0.65417091]
[1747858535228,0.97104384,671.13,669.89,0.25946139]
[1747858536233,0.97104384,671.12,669.91,0.65417091]
[1747858537227,0.97104384,671.11,669.91,0.65417091]
[1747858539627,0.97104384,671.16,669.95,0.65417091]
[1747858541132,0.97104384,671.15,669.95,0.65417091]
[1747858542332,0.97104384,671.14,669.94,0.65417091]
[1747858543130,0.97104384,671.13,669.94,0.65417091]
[1747858544633,0.97104384,671.16,669.98,0.65417091]
[1747858546034,0.97104384,671.15,669.98,0.65417091]
[1747858547431,0.97104384,671.19,669.98,0.65417091]
[1747858547734,1.10393724,671.14,670.07,0.65417091]
[1747858550041,1.10393724,671.16,670.11,0.65417091]
[1747858553438,1.10393724,671.12,670.17,0.65417091]
[1747858556140,1.10393724,671.13,670.15,0.65417091]
[1747858559038,1.10393724,671.15,670.13,0.65417091]
[1747858562143,1.10393724,671.17,670.17,0.65417091]
[1747858564444,1.10393724,671.24,670.25,0.65417091]
[1747858567351,1.10393724,671.25,670.24,0.65417091]
[1747858569049,0.97104384,671.24,670.24,0.65417091]
[1747858570651,0.97104384,671.23,670.2,0.2593821]
[1747858571650,0.97104384,671.22,670.2,0.2593821]
[1747858572846,0.97104384,671.22,670.16,0.65417091]
[1747858573053,1.10393724,671.18,670.14,0.65417091]
[1747858574057,0.97104384,671.17,670.14,0.65417091]
[1747858574256,0.97104384,671.17,670.15,0.25940627]
[1747858575852,0.97104384,671.16,670.15,0.65417091]
[1747858576152,0.97104384,671.16,670.15,0.91357815]
[1747858576956,0.97104384,671.15,670.15,0.91357815]
[1747858578560,0.97104384,671.14,670.17,0.65417091]
[1747858579659,0.97104384,671.13,670.17,0.65417091]
[1747858581358,1.10393724,671.08,670.17,0.65417091]
[1747858581554,1.10393724,671.08,670.13,0.65417091]
[1747858582360,0.97104384,671.07,670.13,0.65417091]
[1747858584561,0.97104384,671.06,670.11,0.65417091]
[1747858585660,0.97104384,671.05,670.11,0.65417091]
[1747858586862,0.97104384,671.05,670.12,0.25945849]
[1747858587156,1.10393724,671.02,670.12,0.25945849]
[1747858587861,1.10393724,671.02,670.05,0.65417091]
[1747858588061,1.10393724,671.02,670.12,0.2594672]
[1747858588963,0.97104384,671.01,670.12,0.2594672]
[1747858590266,0.97104384,671.0,670.12,0.2594672]
[1747858590865,0.97104384,671.0,670.09,0.65417091]
[1747858591057,0.97104384,671.0,670.12,0.25946333]
[1747858591557,0.97104384,670.99,670.12,0.25946333]
[1747858593267,0.97104384,670.98,670.12,0.25946333]
[1747858593868,0.97104384,670.98,670.1,0.65417091]
[1747858594266,0.97104384,671.03,670.12,0.2594643]
[1747858595366,0.97104384,671.02,670.12,0.2594643]
[1747858596166,0.97104384,671.01,670.12,0.2594643]
[1747858597874,1.10393724,670.96,670.12,0.2594643]
[1747858599875,1.10393724,670.96,670.03,0.65417091]
[1747858600174,1.10393724,670.96,670.12,0.25947881]
[1747858600475,1.10393724,670.96,670.03,0.65417091]
[1747858601071,1.10393724,670.96,670.17,0.65417091]
[1747858602377,1.10393724,670.93,670.15,0.65417091]
[1747858605572,1.10393724,670.99,670.14,0.2594701]
[1747858605972,1.10393724,670.99,670.0,0.65417091]
[1747858606778,0.97104384,670.98,670.0,0.65417091]
[1747858607077,0.97104384,670.98,670.01,0.25948074]
[1747858608474,0.97104384,670.97,670.01,0.25948074]
[1747858609881,0.97104384,670.99,670.01,0.25948074]
[1747858611883,1.10393724,671.01,669.99,0.65417091]
[1747858612084,1.10393724,671.01,670.01,0.25948171]
[1747858613283,0.97104384,671.0,670.01,0.25948171]
[1747858614483,2.07498108,670.99,670.01,0.25948171]
[1747858614883,2.07498108,670.99,669.96,0.65417091]
[1747858615385,1.10393724,670.99,669.96,0.65417091]
[1747858616186,1.10393724,670.99,669.97,0.25948848]
[1747858617088,1.10393724,671.0,669.97,0.25948848]
[1747858620089,3.67979082,671.94,669.97,0.25948848]
[1747858620090,1.10393724,670.99,669.97,0.25948848]
[1747858620890,1.10393724,670.99,669.94,0.65417091]
[1747858622092,1.10393724,670.99,669.95,0.25950396]
[1747858622489,1.10393724,670.99,669.98,0.65417091]
[1747858624691,1.10393724,670.96,670.05,0.65417091]
[1747858627195,1.10393724,670.96,670.07,0.65417091]
[1747858629800,1.10393724,671.01,670.02,0.25948654]
[1747858630098,1.10393724,671.01,669.9,0.65417091]
[1747858630798,0.97104384,671.0,669.9,0.65417091]
[1747858631099,0.97104384,671.0,669.91,0.25949815]
[1747858632099,0.97104384,670.99,669.91,0.25949815]
[1747858632900,0.97104384,670.99,669.83,0.65417091]
[1747858633301,0.97104384,671.02,669.83,0.65417091]
[1747858633500,0.97104384,671.02,669.84,0.25949525]
[1747858634705,1.10393724,670.97,670.09,0.65417091]
[1747858638103,0.97104384,670.96,670.09,0.65417091]
[1747858639610,0.97104384,670.95,670.06,0.65417091]
[1747858640912,0.97104384,670.94,670.06,0.65417091]
[1747858642513,0.97104384,670.93,670.1,0.65417091]
[1747858643408,0.97104384,670.98,670.1,0.65417091]
[1747858645114,2.07498108,670.97,670.1,0.65417091]
[1747858646316,0.97104384,670.96,670.1,0.65417091]
[1747858647517,0.97104384,670.95,670.04,0.25945462]
[1747858647916,0.97104384,670.95,670.02,0.65417091]
[1747858648213,0.97104384,670.95,670.04,0.25946913]
[1747858648613,0.97104384,670.94,670.04,0.25946913]
[1747858650320,0.97104384,670.93,670.04,0.25946913]
[1747858650817,0.97104384,670.93,670.02,0.65417091]
[1747858651319,0.97104384,670.93,670.03,0.25948364]
[1747858651815,0.97104384,670.92,670.03,0.25948364]
[1747858653620,0.97104384,670.91,670.03,0.25948364]
[1747858653920,0.97104384,670.91,669.89,0.65417091]
[1747858654221,0.97104384,670.91,670.03,0.25950299]
[1747858654519,0.97104384,670.9,669.89,0.65417091]
[1747858655319,0.97104384,670.9,669.9,0.25950396]
[1747858656524,0.97104384,670.89,669.93,0.65417091]
[1747858657822,0.97104384,670.88,669.93,0.65417091]
[1747858659625,0.97104384,670.87,669.95,0.65417091]
[1747858660926,0.97104384,670.86,669.95,0.65417091]
[1747858662426,0.97104384,670.85,670.11,0.65417091]
[1747858663744,0.97104384,670.84,670.11,0.65417091]
[1747858665229,0.97104384,670.83,670.08,0.65417091]
[1747858667028,0.97104384,670.82,670.08,0.65417091]
[1747858668825,1.10393724,670.9,670.2,0.65417091]
[1747858671330,0.97104384,670.89,670.03,0.25949235]
[1747858671932,0.97104384,671.2,670.03,0.25949235]
[1747858673433,0.97104384,671.19,670.03,0.25949235]
[1747858674527,0.97104384,671.18,670.03,0.25949235]
[1747858674928,0.97104384,671.18,669.8,0.65417091]
[1747858675232,0.97104384,671.18,670.03,0.25945269]
[1747858675429,0.97104384,671.18,669.8,0.65417091]
[1747858675731,0.97104384,671.17,669.79,0.65417091]
[1747858676334,0.97104384,671.17,669.8,0.25946236]
[1747858677029,0.97104384,671.16,669.8,0.25946236]
[1747858677835,0.97104384,671.16,669.79,0.65417091]
[1747858678134,0.97104384,671.16,669.8,0.25946333]
[1747858678336,1.10393724,671.02,670.01,0.65417091]
[1747858679235,0.97104384,671.01,670.01,0.65417091]
[1747858680935,0.97104384,671.0,670.09,0.65417091]
[1747858681730,0.97104384,670.99,670.09,0.65417091]
[1747858682931,0.97104384,670.99,670.23,0.65417091]
[1747858683231,1.10393724,671.0,670.23,0.65417091]
[1747858684132,0.97104384,670.99,670.23,0.65417091]
[1747858685738,0.97104384,670.98,669.97,0.25942561]
[1747858686834,0.97104384,670.98,669.9,0.65417091]
[1747858687040,0.97104384,670.97,669.9,0.65417091]
[1747858688240,0.97104384,670.97,669.91,0.25948461]
[1747858688440,0.97104384,670.96,669.91,0.25948461]
[1747858689844,0.97104384,670.96,669.81,0.65417091]
[1747858690039,0.97104384,670.95,669.81,0.65417091]
[1747858690246,0.97104384,670.95,669.91,0.25950589]
[1747858690543,0.97104384,670.95,669.81,0.65417091]
[1747858691343,0.97104384,670.94,669.81,0.65417091]
[1747858691744,0.97104384,670.94,669.82,0.25950589]
[1747858692345,0.97104384,670.93,669.82,0.25950589]
[1747858693046,0.97104384,670.93,669.81,0.65417091]
[1747858693246,0.97104384,670.93,669.82,0.25949138]
[1747858693447,0.97104384,670.92,669.85,0.65417091]
[1747858694348,0.97104384,670.91,669.85,0.65417091]
[1747858696153,0.97104384,670.9,670.1,0.65417091]
[1747858697449,0.97104384,670.96,670.1,0.65417091]
[1747858698948,0.97104384,670.96,670.13,0.65417091]
[1747858700555,0.97104384,670.98,670.13,0.65417091]
[1747858702259,0.97104384,670.97,670.06,0.25946333]
[1747858703657,0.97104384,670.96,670.06,0.25946333]
[1747858704959,0.97104384,670.96,669.96,0.65417091]
[1747858705253,0.97104384,670.96,670.06,0.25949138]
[1747858705459,1.10393724,670.94,669.95,0.65417091]
[1747858706257,1.10393724,670.94,669.96,0.25949428]
[1747858706462,0.97104384,670.93,669.96,0.25949428]
[1747858707562,0.97104384,670.92,670.04,0.65417091]
[1747858708563,0.97104384,670.91,670.04,0.65417091]
[1747858709961,2.07498108,670.9,670.0,0.65417091]
[1747858711258,0.97104384,670.89,670.0,0.65417091]
[1747858712662,1.10393724,670.87,670.0,0.65417091]
[1747858712861,1.10393724,670.87,669.99,0.25948848]
[1747858713663,0.97104384,670.86,669.99,0.25948848]
[1747858713963,0.97104384,670.86,669.92,0.65417091]
[1747858714266,0.97104384,670.86,669.99,0.25952815]
[1747858714659,0.97104384,670.85,669.99,0.25952815]
[1747858716659,0.97104384,670.84,669.99,0.25952815]
[1747858717863,0.97104384,670.86,669.99,0.25952815]
[1747858718867,0.97104384,670.85,669.99,0.25952815]
[1747858719862,0.97104384,670.87,669.92,0.65417091]
[1747858720062,0.97104384,670.87,669.88,0.65417091]
[1747858721170,0.97104384,670.87,669.89,0.25953105]
[1747858721670,0.97104384,670.86,669.89,0.25953105]
[1747858722971,0.97104384,670.86,669.88,0.65417091]
[1747858723270,0.97104384,670.86,669.89,0.25953589]
[1747858724072,1.10393724,670.82,669.89,0.25953589]
[1747858725874,1.10393724,670.82,669.83,0.65417091]
[1747858726173,1.10393724,670.82,669.89,0.25955235]
[1747858726369,1.10393724,670.83,669.89,0.25955235]
[1747858728980,1.10393724,670.83,669.83,0.65417091]
[1747858729273,1.10393724,670.83,669.89,0.25955138]
[1747858729878,1.10393724,670.8,669.89,0.25955138]
[1747858732376,1.10393724,670.75,669.89,0.25955138]
[1747858734578,1.10393724,670.76,669.89,0.25955138]
[1747858734983,1.10393724,670.76,669.58,0.65417091]
[1747858735179,1.10393724,670.76,669.89,0.25960753]
[1747858735581,1.10393724,670.76,669.58,0.65417091]
[1747858736383,1.10393724,670.76,669.59,0.25960753]
[1747858737884,1.10393724,670.76,669.58,0.65417091]
[1747858739185,1.10393724,670.76,669.59,0.25959785]
[1747858740187,1.10393724,670.79,669.59,0.91376876]
[1747858740881,1.10393724,670.79,669.59,0.65417091]
[1747858742187,1.10393724,670.79,669.59,0.91376488]
[1747858742782,1.10393724,670.77,669.63,0.65417091]
[1747858745789,1.10393724,670.78,669.61,0.25959204]
[1747858746991,1.10393724,670.78,669.57,0.65417091]
[1747858747392,1.10393724,670.78,669.61,0.25959882]
[1747858748792,1.10393724,670.8,669.61,0.25959882]
[1747858752995,1.10393724,670.8,669.58,0.65417091]
[1747858753195,1.10393724,670.72,669.28,0.65417091]
[1747858753391,1.10393724,670.72,669.61,0.25960947]
[1747858753588,1.10393724,670.72,669.28,0.65417091]
[1747858754196,0.97104384,670.71,669.28,0.65417091]
[1747858754494,0.97104384,670.71,669.29,0.25964627]
[1747858755695,0.97104384,670.7,669.31,0.65417091]
[1747858757095,0.97104384,670.73,669.31,0.65417091]
[1747858758492,1.47191632,670.96,669.31,0.65417091]
[1747858758996,0.98027055,670.72,669.34,0.65417091]
[1747858760099,0.98027055,670.71,669.34,0.65417091]
[1747858761899,1.11121669,670.84,669.5,0.65417091]
[1747858764599,1.11121669,670.81,669.59,0.65417091]
[1747858767100,1.11121669,670.79,669.64,0.65417091]
[1747858769803,1.11121669,670.76,669.66,0.65417091]
[1747858772606,1.11121669,670.87,669.61,0.65417091]
[1747858773910,0.98027055,670.86,669.61,0.65417091]
[1747858775603,0.98027055,670.85,669.65,0.65417091]
[1747858776710,1.11121669,670.86,669.65,0.65417091]
[1747858778107,1.11121669,670.83,669.65,0.65417091]
[1747858778314,1.11121669,670.83,669.94,0.65417091]
[1747858780911,2.20787449,671.1,669.94,0.65417091]
[1747858780912,1.11121669,670.84,669.94,0.65417091]
[1747858783619,1.11121669,670.85,669.94,0.65417091]
[1747858786313,1.11121669,670.91,670.0,0.65417091]
[1747858788522,1.11121669,671.08,669.92,0.65417091]
[1747858791318,1.11121669,671.13,669.86,0.65417091]
[1747858791615,1.11121669,671.13,669.88,0.29856093]
[1747858792125,0.98027055,671.12,669.88,0.29856093]
[1747858793323,1.11121669,671.14,669.88,0.29856093]
[1747858796231,1.11121669,671.18,669.88,0.29856093]
[1747858799130,1.11121669,671.14,669.88,0.29856093]
[1747858800333,0.98027055,671.13,669.88,0.29856093]
[1747858801933,0.98027055,671.12,669.88,0.29856093]
[1747858802929,0.98027055,671.11,669.88,0.29856093]
[1747858804636,0.98027055,671.1,669.88,0.29856093]
[1747858806337,0.98027055,671.09,669.88,0.29856093]
[1747858808342,0.98027055,671.08,669.88,0.29856093]
[1747858809742,0.98027055,671.07,669.88,0.29856093]
[1747858810943,0.98027055,671.06,669.88,0.29856093]
[1747858812144,0.98027055,671.05,669.88,0.29856093]
[1747858814046,0.98027055,671.04,669.88,0.29856093]
[1747858814646,0.98027055,671.03,669.88,0.29856093]
[1747858816149,0.98027055,671.02,669.88,0.29856093]
[1747858817150,0.98027055,671.01,669.88,0.29856093]
[1747858818751,1.11121669,671.35,669.91,0.65417091]
[1747858819051,1.11121669,671.35,669.93,0.29853865]
[1747858819952,0.97806067,671.34,669.93,0.29853865]
[1747858821652,0.97806067,671.33,669.98,0.65417091]
[1747858821849,0.97806067,671.33,670.0,0.29850746]
[1747858822852,0.97806067,671.34,670.0,0.29850746]
[1747858824052,1.11121669,671.3,670.09,0.65417091]
[1747858824248,1.11121669,671.3,670.11,0.29845846]
[1747858825552,0.97806067,671.29,670.11,0.29845846]
[1747858826654,1.11121669,671.2,670.11,0.29845846]
[1747858827653,0.97806067,671.19,670.11,0.29845846]
[1747858829255,1.11121669,671.17,670.11,0.29845846]
[1747858830755,0.97806067,671.16,670.11,0.29845846]
[1747858831955,1.11121669,671.16,670.13,0.65417091]
[1747858832156,1.11121669,671.16,670.15,0.29844064]
[1747858834756,1.11121669,671.08,670.15,0.95261155]
[1747858837258,1.11121669,671.06,670.19,0.65417091]
[1747858837469,1.11121669,671.06,670.21,0.29841392]
[1747858839964,1.11121669,671.01,670.21,0.29841392]
[1747858843172,1.11121669,670.99,670.21,0.29841392]
[1747858844575,0.97806067,670.98,670.21,0.29841392]
[1747858846674,1.11121669,670.9,670.21,0.29841392]
[1747858849877,0.97806067,670.95,670.21,0.29841392]
[1747858850675,0.97806067,670.94,670.21,0.29841392]
[1747858852372,0.97806067,670.93,670.21,0.29841392]
[1747858853176,0.97806067,670.92,670.21,0.29841392]
[1747858854677,0.97806067,671.03,670.21,0.29841392]
[1747858855682,0.97806067,671.02,670.21,0.29841392]
[1747858857283,0.97806067,671.01,670.21,0.29841392]
[1747858858184,0.97806067,671.0,670.21,0.29841392]
[1747858859487,0.97806067,670.99,670.21,0.29841392]
[1747858860687,0.97806067,670.98,670.21,0.29841392]
[1747858862184,0.97806067,670.97,670.21,0.29841392]
[1747858863390,0.97806067,671.05,670.21,0.29841392]
[1747858866591,0.97806067,671.11,670.21,0.29841392]
[1747858868398,1.11121669,671.09,670.21,0.29841392]
[1747858869495,0.97806067,671.08,670.21,0.29841392]
[1747858870591,1.11121669,671.07,670.21,0.29841392]
[1747858870791,2.08927736,671.07,670.21,0.29841392]
[1747858871797,1.11121669,671.07,670.21,0.29841392]
[1747858873594,1.11121669,671.06,670.21,0.29841392]
[1747858876295,1.11121669,671.04,670.21,0.29841392]
[1747858878997,1.11121669,671.02,670.21,0.29841392]
[1747858880598,0.97806067,671.01,670.21,0.29841392]
[1747858882106,1.11121669,670.89,670.21,0.29841392]
[1747858888614,1.11121669,670.88,670.21,0.29841392]
[1747858891914,0.97806067,670.95,670.21,0.29841392]
[1747858891915,1.11121669,670.87,670.21,0.29841392]
[1747858893211,0.97806067,670.86,670.21,0.29841392]
[1747858894814,1.11121669,670.8,670.21,0.29841392]
[1747858895921,0.97806067,670.79,670.21,0.29841392]
[1747858897722,0.97806067,670.78,670.21,0.29841392]
[1747858898722,0.97806067,670.77,670.21,0.29841392]
[1747858900425,0.97806067,670.76,670.21,0.29841392]
[1747858900619,1.11121669,670.75,670.21,0.29841392]
[1747858902026,0.97806067,670.74,670.21,0.29841392]
[1747858903526,1.11121669,670.76,670.21,0.29841392]
[1747858907031,3.67979082,671.63,670.21,0.29841392]
[1747858907032,1.11121669,670.82,670.21,0.29841392]
[1747858908331,0.97806067,670.81,670.21,0.29841392]
[1747858909628,0.97806067,670.8,670.21,0.29841392]
[1747858910934,0.97806067,670.79,670.21,0.29841392]
[1747858912735,0.97806067,670.78,670.21,0.29841392]
[1747858913936,0.97806067,670.77,670.21,0.29841392]
[1747858916136,0.97806067,670.76,670.21,0.29841392]
[1747858917936,0.97806067,670.75,670.21,0.29841392]
[1747858919338,0.97806067,670.74,670.21,0.29841392]
[1747858920639,0.97806067,670.73,670.21,0.29841392]
[1747858922539,0.97806067,670.72,670.21,0.29841392]
[1747858923242,1.11121669,670.77,670.21,0.29841392]
[1747858923243,0.97806067,670.71,670.21,0.29841392]
[1747858925140,0.97806067,670.7,670.21,0.29841392]
[1747858926538,1.11121669,670.78,670.21,0.29841392]
[1747858926539,0.97806067,670.69,670.21,0.29841392]
[1747858928448,0.97806067,670.68,670.21,0.29841392]
[1747858929442,0.97806067,670.67,670.21,0.29841392]
[1747858930848,0.97806067,670.66,670.21,0.29841392]
[1747858932146,1.11121669,670.78,670.21,0.29841392]
[1747858932147,0.97806067,670.65,670.21,0.29841392]
[1747858933243,0.97806067,670.64,670.21,0.29841392]
[1747858934450,1.11121669,670.7,670.21,0.29841392]
[1747858934451,0.97806067,670.63,670.21,0.29841392]
[1747858935650,0.97806067,670.62,670.21,0.29841392]
[1747858936946,0.97806067,670.61,670.21,0.29841392]
[1747858938055,0.97806067,670.6,670.21,0.29841392]
[1747858939255,0.97806067,670.59,670.21,0.29841392]
[1747858939954,0.97806067,670.59,669.72,0.65417091]
[1747858940355,0.97806067,670.59,669.73,0.2596085]
[1747858941458,0.97806067,670.58,669.73,0.2596085]
[1747858942059,0.97806067,670.58,669.72,0.65417091]
[1747858942250,0.97806067,670.57,669.72,0.65417091]
[1747858943257,0.97806067,670.56,669.75,0.65417091]
[1747858944357,0.97806067,670.55,669.75,0.65417091]
[1747858945862,0.97806067,670.54,669.63,0.65417091]
[1747858946262,0.97806067,670.54,669.64,0.25963174]
[1747858947059,0.97806067,670.53,669.64,0.25963174]
[1747858948459,0.97806067,670.52,669.64,0.25963174]
[1747858949860,0.97806067,670.51,669.64,0.25963174]
[1747858951267,0.97806067,670.51,669.62,0.65417091]
[1747858951461,0.97806067,670.5,669.69,0.65417091]
[1747858952569,0.97806067,670.49,669.69,0.65417091]
[1747858953868,0.97806067,670.48,669.74,0.65417091]
[1747858955069,0.97806067,670.47,669.74,0.65417091]
[1747858956265,0.97806067,670.46,669.75,0.65417091]
[1747858957670,0.97806067,670.45,669.75,0.65417091]
[1747858959575,1.11121669,670.6,669.74,0.65417091]
[1747858959576,0.97806067,670.44,669.74,0.65417091]
[1747858960875,0.97806067,670.43,669.74,0.65417091]
[1747858962579,0.97806067,670.42,669.73,0.65417091]
[1747858963878,1.11121669,670.59,669.73,0.65417091]
[1747858963879,0.97806067,670.41,669.73,0.65417091]
[1747858965681,0.97806067,670.4,669.77,0.65417091]
[1747858967382,0.97806067,670.39,669.77,0.65417091]
[1747858969084,0.97806067,670.38,669.79,0.65417091]
[1747858970080,0.97806067,670.37,669.79,0.65417091]
[1747858971785,0.97806067,670.36,669.76,0.25963368]
[1747858972082,0.97806067,670.36,669.77,0.29860997]
[1747858973186,0.97806067,670.35,669.77,0.29860997]
[1747858974981,1.11121669,670.62,669.77,0.29860997]
[1747858986702,0.97413013,670.61,669.77,0.29860997]
[1747858987902,0.97413013,670.6,669.77,0.29860997]
[1747858989203,0.97413013,670.59,669.77,0.29860997]
[1747858990804,0.97413013,670.58,669.77,0.29860997]
[1747858992405,1.11121669,670.73,669.77,0.29860997]
[1747858993601,0.97413013,670.72,669.77,0.29860997]
[1747858994902,0.97413013,670.71,669.77,0.95278088]
[1747858996409,0.97413013,670.7,669.77,0.95278088]
[1747858998010,0.97413013,670.69,669.77,0.29860997]
[1747858999610,0.97413013,670.68,669.77,0.29860997]
[1747859001315,1.11121669,670.65,669.77,0.29860997]
[1747859002815,0.97413013,670.64,669.77,0.29860997]
[1747859004617,2.08534682,670.64,669.77,0.29860997]
[1747859004816,0.97413013,670.63,669.77,0.29860997]
[1747859005912,0.97413013,670.62,669.77,0.29860997]
[1747859007411,2.08534682,670.61,669.77,0.29860997]
[1747859009111,0.97413013,670.6,669.77,0.29860997]
[1747859010321,1.11121669,670.65,669.84,0.65417091]
[1747859010516,1.11121669,670.65,669.86,0.29856985]
[1747859013020,1.11121669,670.65,669.91,0.65417091]
[1747859013219,1.11121669,670.65,669.92,0.2985431]
[1747859016121,1.11121669,670.68,669.92,0.2985431]
[1747859018425,1.11121669,670.67,669.92,0.2985431]
[1747859023327,0.97413013,670.66,669.92,0.2985431]
[1747859024925,1.11121669,670.64,669.92,0.2985431]
[1747859026120,0.97413013,670.63,669.92,0.2985431]
[1747859028229,0.97413013,670.62,669.92,0.2985431]
[1747859029326,0.97413013,670.61,669.92,0.2985431]
[1747859030924,0.97413013,670.6,669.92,0.2985431]
[1747859032428,0.97413013,670.59,669.92,0.2985431]
[1747859033933,0.97413013,670.58,669.92,0.2985431]
[1747859035428,0.97413013,670.57,669.92,0.2985431]
[1747859037229,0.97413013,670.56,669.92,0.2985431]
[1747859038731,0.97413013,670.55,669.92,0.2985431]
[1747859040631,0.97413013,670.54,669.92,0.2985431]
[1747859041739,0.97413013,670.66,669.92,0.2985431]
[1747859043138,2.08534682,670.65,669.92,0.2985431]
[1747859044739,0.97413013,670.64,669.92,0.2985431]
[1747859046138,0.97413013,670.63,669.92,0.2985431]
[1747859046942,0.97413013,670.62,669.92,0.2985431]
[1747859048238,0.97413013,670.61,669.92,0.2985431]
[1747859049645,1.11121669,670.65,669.92,0.2985431]
[1747859051244,0.97413013,670.77,669.92,0.2985431]
[1747859052745,0.97413013,670.76,669.92,0.2985431]
[1747859053947,0.97413013,670.75,669.92,0.2985431]
[1747859055444,0.97413013,670.74,669.92,0.2985431]
[1747859056851,0.97413013,670.78,669.92,0.2985431]
[1747859058252,0.97413013,670.77,669.92,0.2985431]
[1747859060047,1.11121669,670.8,669.94,0.65417091]
[1747859060250,1.11121669,670.8,669.96,0.29852528]
[1747859062658,1.11121669,670.8,670.03,0.65417091]
[1747859062859,1.11121669,670.8,670.04,0.29848964]
[1747859065159,1.11121669,670.94,670.05,0.65417091]
[1747859065458,1.11121669,670.94,670.07,0.29847627]
[1747859066261,0.97413013,670.93,670.07,0.29847627]
[1747859068461,1.11121669,670.95,670.07,0.29847627]
[1747859069763,0.97413013,670.94,670.07,0.29847627]
[1747859071063,1.11121669,670.95,670.07,0.29847627]
[1747859072365,0.97413013,670.94,670.07,0.29847627]
[1747859073260,1.11121669,670.94,670.07,0.29847627]
[1747859074668,0.97413013,670.93,670.07,0.29847627]
[1747859076269,1.11121669,670.95,670.07,0.29847627]
[1747859077572,0.97413013,670.94,670.07,0.29847627]
[1747859081772,2.08534682,670.94,670.07,0.29847627]
[1747859082974,0.97413013,670.93,670.07,0.29847627]
[1747859084074,2.08534682,670.93,670.07,0.29847627]
[1747859085577,0.97413013,670.92,670.07,0.29847627]
[1747859088378,0.97413013,670.91,670.07,0.29847627]
[1747859089978,2.08534682,670.9,670.07,0.29847627]
[1747859091278,0.97413013,670.89,670.07,0.29847627]
[1747859092784,2.08534682,670.88,670.07,0.29847627]
[1747859093682,0.97413013,670.87,670.07,0.29847627]
[1747859094881,0.97413013,670.86,670.07,0.29847627]
[1747859096285,0.97413013,670.85,670.07,0.29847627]
[1747859097685,0.97413013,670.84,670.07,0.29847627]
[1747859099087,0.97413013,670.83,670.07,0.29847627]
[1747859101187,1.11121669,670.81,670.07,0.29847627]
[1747859102289,0.97413013,670.8,670.07,0.29847627]
[1747859103392,1.11121669,670.77,670.07,0.29847627]
[1747859104592,0.97413013,670.76,670.07,0.29847627]
[1747859106193,0.97413013,670.75,670.07,0.29847627]
[1747859107990,0.97413013,670.74,670.07,0.29847627]
[1747859109495,0.97413013,670.75,670.07,0.29847627]
[1747859116901,1.11121669,670.76,670.07,0.29847627]
[1747859118703,1.11121669,670.73,670.07,0.29847627]
[1747859121703,1.11121669,670.75,670.07,0.29847627]
[1747859124610,1.11121669,670.76,670.07,0.29847627]
[1747859125610,0.97413013,670.75,670.07,0.29847627]
[1747859127010,2.08534682,670.74,670.07,0.29847627]
[1747859128407,0.97413013,670.73,670.07,0.29847627]
[1747859130214,1.11121669,670.7,670.07,0.29847627]
[1747859131211,0.97413013,670.69,670.07,0.29847627]
[1747859132715,2.08534682,670.68,670.07,0.29847627]
[1747859134119,0.97413013,670.67,670.07,0.29847627]
[1747859136421,1.11121669,670.64,670.07,0.29847627]
[1747859137714,0.97413013,670.63,670.07,0.29847627]
[1747859139220,0.97413013,670.62,670.07,0.29847627]
[1747859140820,1.47191632,670.83,670.07,0.29847627]
[1747859141022,0.97701299,670.61,670.07,0.29847627]
[1747859142223,0.97701299,670.6,670.07,0.29847627]
[1747859143323,0.97701299,670.59,670.07,0.29847627]